[Event "FIDE World Rapid Chess Championship 2021"]
[White "Kovalev, Vladislav"]
[Black "Harsha, Bharathakoti"]
[WhiteFideId "13504398"]
[BlackFideId "5078776"]
[WhiteElo "2647"]
[BlackElo "2484"]
[Result "0-1"]
[Round "02"]
[TimeControl "900+10"]
[Date "2021.12.26"]
[WhiteClock "0:00:00"]
[BlackClock "0:00:41"]

1. e4 {[%clk 0:15:19]}  c5 {[%clk 0:15:07]} 2. Nf3 {[%clk 0:15:28]}  d6 {[%clk 0:15:13]} 3. Bb5+ {[%clk 0:15:36]}  Nd7 {[%clk 0:15:21]} 4. O-O {[%clk 0:15:45]}  a6 {[%clk 0:15:18]} 5. Bd3 {[%clk 0:15:53]}  Ngf6 {[%clk 0:15:12]} 6. Re1 {[%clk 0:16:02]}  e6 {[%clk 0:14:43]} 7. Bf1 {[%clk 0:15:55]}  b6 {[%clk 0:13:55]} 8. d4 {[%clk 0:15:38]}  cxd4 {[%clk 0:14:00]} 9. Nxd4 {[%clk 0:15:46]}  Bb7 {[%clk 0:14:06]} 10. f3 {[%clk 0:15:55]}  Be7 {[%clk 0:13:53]} 11. c4 {[%clk 0:16:04]}  O-O {[%clk 0:14:00]} 12. Nc3 {[%clk 0:16:13]}  Qc7 {[%clk 0:13:56]} 13. Be3 {[%clk 0:15:22]}  Rac8 {[%clk 0:13:33]} 14. Rc1 {[%clk 0:15:29]}  Qb8 {[%clk 0:13:23]} 15. Qd2 {[%clk 0:15:03]}  Rfe8 {[%clk 0:13:25]} 16. Kh1 {[%clk 0:14:59]}  Bd8 {[%clk 0:12:26]} 17. Qf2 {[%clk 0:10:23]}  Bc7 {[%clk 0:12:14]} 18. Qh4 {[%clk 0:10:14]}  Ne5 {[%clk 0:11:29]} 19. Qh3 {[%clk 0:09:51]}  Ng6 {[%clk 0:09:44]} 20. Bg5 {[%clk 0:09:55]}  Bd8 {[%clk 0:09:24]} 21. Be3 {[%clk 0:08:53]}  Bc7 {[%clk 0:09:24]} 22. Bg5 {[%clk 0:07:26]}  Bd8 {[%clk 0:09:30]} 23. Be3 {[%clk 0:07:24]}  Rc5 {[%clk 0:09:20]} 24. Qg3 {[%clk 0:05:20]}  Bc7 {[%clk 0:07:24]} 25. Qf2 {[%clk 0:04:53]}  d5 {[%clk 0:06:29]} 26. cxd5 {[%clk 0:04:53]}  Bxh2 {[%clk 0:05:34]} 27. Nde2 {[%clk 0:04:44]}  Bd6 {[%clk 0:05:02]} 28. Bxc5 {[%clk 0:04:44]}  Bxc5 {[%clk 0:05:02]} 29. Qg3 {[%clk 0:04:44]}  Qxg3 {[%clk 0:05:02]} 30. Nxg3 {[%clk 0:04:44]}  Bf2 {[%clk 0:05:19]} 31. dxe6 {[%clk 0:00:28]}  Bxg3 {[%clk 0:05:12]} 32. exf7+ {[%clk 0:00:36]}  Kxf7 {[%clk 0:05:21]} 33. Red1 {[%clk 0:00:46]}  b5 {[%clk 0:05:21]} 34. Ne2 {[%clk 0:00:00]}  Be5 {[%clk 0:05:21]} 35. b3 {[%clk 0:00:00]}  Nf4 {[%clk 0:05:21]} 36. Nd4 {[%clk 0:00:00]}  N4h5 {[%clk 0:05:21]} 37. Kg1 {[%clk 0:00:03]}  Bf4 {[%clk 0:01:19]} 38. Rc3 {[%clk 0:00:03]}  Rd8 {[%clk 0:01:19]} 39. Rcd3 {[%clk 0:00:03]}  Ng3 {[%clk 0:01:19]} 40. Kf2 {[%clk 0:00:03]}  Nh1+ {[%clk 0:01:19]} 41. Kg1 {[%clk 0:00:03]}  Ng3 {[%clk 0:01:19]} 42. Kf2 {[%clk 0:00:03]}  Rc8 {[%clk 0:01:19]} 43. a4 {[%clk 0:00:03]}  b4 {[%clk 0:01:19]} 44. Ne2 {[%clk 0:00:03]}  Nxe2 {[%clk 0:01:19]} 45. Bxe2 {[%clk 0:00:03]}  Rc7 {[%clk 0:00:54]} 46. a5 {[%clk 0:00:25]}  Be5 {[%clk 0:00:54]} 47. Rd8 {[%clk 0:00:25]}  Ke7 {[%clk 0:00:54]} 48. Bc4 {[%clk 0:00:25]}  Rc5 {[%clk 0:00:54]} 49. Ke3 {[%clk 0:00:25]}  Rxa5 {[%clk 0:00:54]} 50. R8d2 {[%clk 0:00:25]}  g5 {[%clk 0:00:54]} 51. Kf2 {[%clk 0:00:25]}  Rc5 {[%clk 0:00:54]} 52. Rd8 {[%clk 0:00:25]}  a5 {[%clk 0:00:41]} 53. Ke3 {[%clk 0:00:00]}  a4 {[%clk 0:00:41]} 54. R8d3 {[%clk 0:00:00]}  a3 {[%clk 0:00:41]} 0-1


[Site "http://www.Chess.com"]

[Event "FIDE World Rapid Chess Championship 2021"]
[White "Tang, Andrew"]
[Black "Antipov, Mikhail Al."]
[WhiteFideId "2059630"]
[BlackFideId "4107012"]
[WhiteElo "2427"]
[BlackElo "2644"]
[Result "0-1"]
[Round "02"]
[TimeControl "900+10"]
[Date "2021.12.26"]
[WhiteClock "0:00:15"]
[BlackClock "0:00:26"]

1. d4 {[%clk 0:15:19]}  Nf6 {[%clk 0:15:19]} 2. Nf3 {[%clk 0:15:24]}  g6 {[%clk 0:15:28]} 3. Nbd2 {[%clk 0:15:32]}  Bg7 {[%clk 0:14:15]} 4. e4 {[%clk 0:15:38]}  d6 {[%clk 0:14:23]} 5. Bd3 {[%clk 0:15:45]}  O-O {[%clk 0:14:09]} 6. O-O {[%clk 0:15:41]}  Nfd7 {[%clk 0:13:34]} 7. Re1 {[%clk 0:13:37]}  e5 {[%clk 0:13:42]} 8. dxe5 {[%clk 0:10:33]}  dxe5 {[%clk 0:13:26]} 9. Nc4 {[%clk 0:10:21]}  Qe7 {[%clk 0:11:16]} 10. Bg5 {[%clk 0:09:22]}  f6 {[%clk 0:11:15]} 11. Bh4 {[%clk 0:08:18]}  Qf7 {[%clk 0:08:05]} 12. c3 {[%clk 0:07:50]}  Nc5 {[%clk 0:11:15]} 13. Bf1 {[%clk 0:07:58]}  Be6 {[%clk 0:07:48]} 14. Nfd2 {[%clk 0:07:51]}  Nc6 {[%clk 0:06:24]} 15. Qc2 {[%clk 0:05:43]}  Rad8 {[%clk 0:04:55]} 16. Ne3 {[%clk 0:04:31]}  Ne7 {[%clk 0:02:42]} 17. b4 {[%clk 0:03:57]}  Nd7 {[%clk 0:02:51]} 18. Bc4 {[%clk 0:03:51]}  h5 {[%clk 0:02:42]} 19. f3 {[%clk 0:04:31]}  Bh6 {[%clk 0:02:42]} 20. Qb3 {[%clk 0:03:30]}  Bxc4 {[%clk 0:02:13]} 21. Ndxc4 {[%clk 0:01:00]}  Nb6 {[%clk 0:01:57]} 22. Rad1 {[%clk 0:00:25]}  Nxc4 {[%clk 0:01:57]} 23. Nxc4 {[%clk 0:01:00]}  Kg7 {[%clk 0:01:57]} 24. Bf2 {[%clk 0:01:00]}  b6 {[%clk 0:01:57]} 25. a4 {[%clk 0:00:11]}  Nc8 {[%clk 0:01:57]} 26. Rb1 {[%clk 0:01:00]}  Rd3 {[%clk 0:00:37]} 27. b5 {[%clk 0:00:14]}  Rfd8 {[%clk 0:00:37]} 28. a5 {[%clk 0:00:14]}  Nd6 {[%clk 0:00:37]} 29. Nxd6 {[%clk 0:00:14]}  Qxb3 {[%clk 0:00:37]} 30. Rxb3 {[%clk 0:00:14]}  R8xd6 {[%clk 0:00:37]} 31. axb6 {[%clk 0:00:14]}  axb6 {[%clk 0:00:37]} 32. Kf1 {[%clk 0:00:23]}  Kf7 {[%clk 0:00:37]} 33. Ra1 {[%clk 0:00:14]}  Ke6 {[%clk 0:00:37]} 34. Be1 {[%clk 0:00:15]}  f5 {[%clk 0:00:26]} 35. exf5+ {[%clk 0:00:15]}  gxf5 {[%clk 0:00:26]} 36. Ra7 {[%clk 0:00:15]}  Rd7 {[%clk 0:00:26]} 37. Rb4 {[%clk 0:00:15]}  Rd1 {[%clk 0:00:26]} 38. Ra2 {[%clk 0:00:15]}  Bd2 {[%clk 0:00:26]} 39. Rxd2 {[%clk 0:00:15]}  R7xd2 {[%clk 0:00:26]} 40. Rc4 {[%clk 0:00:15]}  Rc2 {[%clk 0:00:26]} 0-1


[Site "http://www.Chess.com"]

[Event "FIDE World Rapid Chess Championship 2021"]
[White "Alekseenko, Kirill"]
[Black "Bellahcene, Bilel"]
[WhiteFideId "4135539"]
[BlackFideId "696358"]
[WhiteElo "2637"]
[BlackElo "2397"]
[Result "1-0"]
[Round "02"]
[TimeControl "900+10"]
[Date "2021.12.26"]
[WhiteClock "0:00:54"]
[BlackClock "0:00:15"]

1. e4 {[%clk 0:15:17]}  c5 {[%clk 0:15:19]} 2. Nf3 {[%clk 0:15:23]}  e6 {[%clk 0:15:27]} 3. d4 {[%clk 0:15:32]}  cxd4 {[%clk 0:15:36]} 4. Nxd4 {[%clk 0:15:41]}  Nf6 {[%clk 0:15:44]} 5. Nc3 {[%clk 0:15:47]}  Nc6 {[%clk 0:15:53]} 6. Nxc6 {[%clk 0:15:30]}  bxc6 {[%clk 0:16:01]} 7. e5 {[%clk 0:15:39]}  Nd5 {[%clk 0:16:09]} 8. Ne4 {[%clk 0:15:48]}  Qc7 {[%clk 0:16:17]} 9. f4 {[%clk 0:15:55]}  Qb6 {[%clk 0:16:24]} 10. a3 {[%clk 0:14:50]}  Ne3 {[%clk 0:16:32]} 11. Qd3 {[%clk 0:14:30]}  Nxf1 {[%clk 0:16:39]} 12. Rxf1 {[%clk 0:14:33]}  Ba6 {[%clk 0:16:48]} 13. c4 {[%clk 0:14:42]}  f5 {[%clk 0:16:56]} 14. exf6 {[%clk 0:13:56]}  d5 {[%clk 0:17:04]} 15. f7+ {[%clk 0:12:17]}  Kxf7 {[%clk 0:17:11]} 16. f5 {[%clk 0:12:22]}  h6 {[%clk 0:17:19]} 17. Be3 {[%clk 0:10:50]}  Qb7 {[%clk 0:10:42]} 18. fxe6+ {[%clk 0:08:42]}  Kg8 {[%clk 0:10:51]} 19. Nd2 {[%clk 0:06:54]}  Qe7 {[%clk 0:07:44]} 20. O-O-O {[%clk 0:05:55]}  Qxe6 {[%clk 0:07:53]} 21. Qc3 {[%clk 0:05:38]}  Kh7 {[%clk 0:07:03]} 22. Rde1 {[%clk 0:05:47]}  Qg6 {[%clk 0:06:19]} 23. Nf3 {[%clk 0:05:43]}  Bd6 {[%clk 0:05:57]} 24. Nh4 {[%clk 0:04:09]}  Qe4 {[%clk 0:04:24]} 25. Bxh6 {[%clk 0:04:09]}  Qxc4 {[%clk 0:04:12]} 26. Qxc4 {[%clk 0:01:55]}  Bxc4 {[%clk 0:04:15]} 27. Rf7 {[%clk 0:02:01]}  Raf8 {[%clk 0:02:00]} 28. Rd7 {[%clk 0:02:10]}  Kxh6 {[%clk 0:04:15]} 29. Rxd6+ {[%clk 0:02:01]}  Rf6 {[%clk 0:04:15]} 30. Ree6 {[%clk 0:02:01]}  c5 {[%clk 0:04:15]} 31. Rxf6+ {[%clk 0:02:01]}  gxf6 {[%clk 0:04:15]} 32. Rc6 {[%clk 0:02:01]}  Kg5 {[%clk 0:04:15]} 33. Nf3+ {[%clk 0:02:01]}  Kf4 {[%clk 0:04:15]} 34. Rxf6+ {[%clk 0:01:38]}  Ke3 {[%clk 0:01:35]} 35. Ne5 {[%clk 0:01:38]}  Be2 {[%clk 0:01:35]} 36. Re6 {[%clk 0:01:38]}  Kf2 {[%clk 0:01:35]} 37. Kd2 {[%clk 0:01:38]}  Bf1 {[%clk 0:01:35]} 38. g3 {[%clk 0:01:12]}  d4 {[%clk 0:00:25]} 39. Rf6+ {[%clk 0:01:12]}  Kg2 {[%clk 0:00:25]} 40. Ke1 {[%clk 0:01:12]}  Re8 {[%clk 0:00:25]} 41. Rf2+ {[%clk 0:01:12]}  Kh3 {[%clk 0:00:25]} 42. Kxf1 {[%clk 0:01:12]}  Rxe5 {[%clk 0:00:25]} 43. Re2 {[%clk 0:01:12]}  Rf5+ {[%clk 0:00:25]} 44. Rf2 {[%clk 0:01:12]}  Re5 {[%clk 0:00:25]} 45. Rf4 {[%clk 0:01:12]}  Rh5 {[%clk 0:00:23]} 46. Kf2 {[%clk 0:00:45]}  a5 {[%clk 0:00:23]} 47. b3 {[%clk 0:00:45]}  Rh8 {[%clk 0:00:23]} 48. Kf3 {[%clk 0:00:45]}  Rh7 {[%clk 0:00:23]} 49. a4 {[%clk 0:00:45]}  Rh6 {[%clk 0:00:23]} 50. Rf5 {[%clk 0:00:45]}  Kxh2 {[%clk 0:00:23]} 51. Rxc5 {[%clk 0:00:45]}  Re6 {[%clk 0:00:17]} 52. Rh5+ {[%clk 0:00:11]}  Kg1 {[%clk 0:00:17]} 53. Rd5 {[%clk 0:00:11]}  Re3+ {[%clk 0:00:17]} 54. Kf4 {[%clk 0:00:11]}  Kf2 {[%clk 0:00:17]} 55. Rxd4 {[%clk 0:00:11]}  Rf3+ {[%clk 0:00:17]} 56. Ke4 {[%clk 0:00:11]}  Rxb3 {[%clk 0:00:17]} 57. g4 {[%clk 0:00:29]}  Kg3 {[%clk 0:00:17]} 58. Kf5 {[%clk 0:00:11]}  Kh4 {[%clk 0:00:14]} 59. g5+ {[%clk 0:00:11]}  Kh5 {[%clk 0:00:17]} 60. Rd5 {[%clk 0:00:11]}  Rf3+ {[%clk 0:00:14]} 61. Ke6 {[%clk 0:00:26]}  Kg6 {[%clk 0:00:11]} 62. Rxa5 {[%clk 0:00:35]}  Rf4 {[%clk 0:00:12]} 63. Kd6 {[%clk 0:00:38]}  Rc4 {[%clk 0:00:12]} 64. Kd5 {[%clk 0:00:36]}  Rf4 {[%clk 0:00:14]} 65. Kc6 {[%clk 0:00:12]}  Rb4 {[%clk 0:00:16]} 66. Kc5 {[%clk 0:00:39]}  Rb1 {[%clk 0:00:19]} 67. Rb5 {[%clk 0:00:45]}  Ra1 {[%clk 0:00:15]} 68. a5 {[%clk 0:00:54]} 1-0


[Site "http://www.Chess.com"]

[Event "FIDE World Rapid Chess Championship 2021"]
[White "Sjugirov, Sanan"]
[Black "Van Foreest, Lucas"]
[WhiteFideId "4189302"]
[BlackFideId "1039792"]
[WhiteElo "2634"]
[BlackElo "2374"]
[Result "0-1"]
[Round "02"]
[TimeControl "900+10"]
[Date "2021.12.26"]
[WhiteClock "0:00:21"]
[BlackClock "0:06:23"]

1. Nf3 {[%clk 0:15:17]}  d5 {[%clk 0:15:19]} 2. g3 {[%clk 0:15:23]}  Nf6 {[%clk 0:15:21]} 3. Bg2 {[%clk 0:15:30]}  e6 {[%clk 0:15:24]} 4. O-O {[%clk 0:15:28]}  Be7 {[%clk 0:15:32]} 5. c4 {[%clk 0:15:19]}  O-O {[%clk 0:15:40]} 6. b3 {[%clk 0:13:41]}  d4 {[%clk 0:15:49]} 7. e3 {[%clk 0:13:31]}  c5 {[%clk 0:15:59]} 8. Ne5 {[%clk 0:13:20]}  Qc7 {[%clk 0:16:08]} 9. f4 {[%clk 0:13:24]}  Nfd7 {[%clk 0:16:17]} 10. Nd3 {[%clk 0:13:22]}  Nc6 {[%clk 0:16:26]} 11. e4 {[%clk 0:12:34]}  f5 {[%clk 0:15:13]} 12. Nf2 {[%clk 0:08:35]}  e5 {[%clk 0:15:01]} 13. d3 {[%clk 0:08:43]}  Nf6 {[%clk 0:15:10]} 14. exf5 {[%clk 0:08:23]}  Bxf5 {[%clk 0:14:50]} 15. g4 {[%clk 0:08:26]}  Bd7 {[%clk 0:14:40]} 16. f5 {[%clk 0:07:44]}  g6 {[%clk 0:14:11]} 17. fxg6 {[%clk 0:05:26]}  e4 {[%clk 0:13:35]} 18. gxh7+ {[%clk 0:05:12]}  Kh8 {[%clk 0:13:43]} 19. dxe4 {[%clk 0:05:16]}  Nxh7 {[%clk 0:13:25]} 20. Nd2 {[%clk 0:04:57]}  Ne5 {[%clk 0:11:46]} 21. h3 {[%clk 0:03:26]}  Bh4 {[%clk 0:11:56]} 22. Qe2 {[%clk 0:02:27]}  Ng5 {[%clk 0:11:39]} 23. Nd3 {[%clk 0:02:00]}  Nxd3 {[%clk 0:08:47]} 24. Qxd3 {[%clk 0:02:08]}  Qe5 {[%clk 0:08:49]} 25. Bb2 {[%clk 0:01:05]}  Kg7 {[%clk 0:06:41]} 26. Rxf8 {[%clk 0:00:58]}  Rxf8 {[%clk 0:06:50]} 27. Rf1 {[%clk 0:01:06]}  Rxf1+ {[%clk 0:06:09]} 28. Nxf1 {[%clk 0:01:14]}  Bc6 {[%clk 0:06:14]} 29. Bc1 {[%clk 0:00:13]}  Nxe4 {[%clk 0:06:10]} 30. Qe2 {[%clk 0:00:11]}  Bf2+ {[%clk 0:06:15]} 31. Kh1 {[%clk 0:00:21]}  Ng3+ {[%clk 0:06:23]} 0-1


[Site "http://www.Chess.com"]

[Event "FIDE World Rapid Chess Championship 2021"]
[White "Volokitin, Andrei"]
[Black "Wieczorek, Oskar"]
[WhiteFideId "14107090"]
[BlackFideId "1133950"]
[WhiteElo "2631"]
[BlackElo "2367"]
[Result "1-0"]
[Round "02"]
[TimeControl "900+10"]
[Date "2021.12.26"]
[WhiteClock "0:00:51"]
[BlackClock "0:00:16"]

1. e4 {[%clk 0:15:18]}  c5 {[%clk 0:15:19]} 2. Nf3 {[%clk 0:15:26]}  g6 {[%clk 0:15:27]} 3. d4 {[%clk 0:15:34]}  cxd4 {[%clk 0:15:35]} 4. Nxd4 {[%clk 0:15:41]}  Nc6 {[%clk 0:15:43]} 5. c4 {[%clk 0:15:49]}  Nf6 {[%clk 0:15:50]} 6. Nc3 {[%clk 0:15:57]}  d6 {[%clk 0:15:59]} 7. f3 {[%clk 0:14:23]}  Nxd4 {[%clk 0:16:01]} 8. Qxd4 {[%clk 0:14:31]}  Bg7 {[%clk 0:16:10]} 9. Be3 {[%clk 0:14:35]}  O-O {[%clk 0:16:16]} 10. Qd2 {[%clk 0:14:43]}  Be6 {[%clk 0:15:38]} 11. Rc1 {[%clk 0:14:49]}  a6 {[%clk 0:15:11]} 12. b3 {[%clk 0:14:12]}  Rc8 {[%clk 0:13:56]} 13. Be2 {[%clk 0:13:22]}  Qa5 {[%clk 0:14:03]} 14. O-O {[%clk 0:13:22]}  Rfe8 {[%clk 0:14:00]} 15. Rfd1 {[%clk 0:05:43]}  Nd7 {[%clk 0:12:03]} 16. Nd5 {[%clk 0:04:26]}  Qxd2 {[%clk 0:12:06]} 17. Rxd2 {[%clk 0:04:34]}  Bxd5 {[%clk 0:06:49]} 18. Rxd5 {[%clk 0:04:41]}  Rc6 {[%clk 0:06:48]} 19. b4 {[%clk 0:03:44]}  Rec8 {[%clk 0:06:48]} 20. c5 {[%clk 0:03:44]}  Nb6 {[%clk 0:03:37]} 21. Rdd1 {[%clk 0:02:45]}  dxc5 {[%clk 0:03:41]} 22. Rxc5 {[%clk 0:02:12]}  Rxc5 {[%clk 0:02:54]} 23. bxc5 {[%clk 0:02:21]}  Na4 {[%clk 0:02:54]} 24. c6 {[%clk 0:02:29]}  bxc6 {[%clk 0:02:22]} 25. Bxa6 {[%clk 0:02:38]}  Rb8 {[%clk 0:03:41]} 26. Bf4 {[%clk 0:02:38]}  e5 {[%clk 0:02:11]} 27. Bg5 {[%clk 0:02:38]}  Bf8 {[%clk 0:00:35]} 28. Rd8 {[%clk 0:00:46]}  Rxd8 {[%clk 0:00:35]} 29. Bxd8 {[%clk 0:00:46]}  Bc5+ {[%clk 0:00:20]} 30. Kf1 {[%clk 0:00:37]}  Bd4 {[%clk 0:00:35]} 31. Bc4 {[%clk 0:00:46]}  Kf8 {[%clk 0:00:35]} 32. Ke2 {[%clk 0:00:46]}  Ke8 {[%clk 0:00:35]} 33. Ba5 {[%clk 0:00:46]}  Ke7 {[%clk 0:00:35]} 34. Bd2 {[%clk 0:00:29]}  h5 {[%clk 0:00:14]} 35. Bb3 {[%clk 0:00:29]}  Nc5 {[%clk 0:00:14]} 36. Bc2 {[%clk 0:00:29]}  Ne6 {[%clk 0:00:14]} 37. a4 {[%clk 0:00:29]}  Kd6 {[%clk 0:00:14]} 38. a5 {[%clk 0:00:29]}  Ba7 {[%clk 0:00:14]} 39. g3 {[%clk 0:00:29]}  Nd4+ {[%clk 0:00:14]} 40. Kd3 {[%clk 0:00:29]}  Nxf3 {[%clk 0:00:14]} 41. Bb4+ {[%clk 0:00:29]}  c5 {[%clk 0:00:14]} 42. Bc3 {[%clk 0:00:29]}  Nd4 {[%clk 0:00:14]} 43. Ba4 {[%clk 0:00:29]}  f5 {[%clk 0:00:14]} 44. Be8 {[%clk 0:00:29]}  f4 {[%clk 0:00:14]} 45. Bxg6 {[%clk 0:00:51]}  c4+ {[%clk 0:00:16]} 46. Kxc4 {[%clk 0:00:51]}  f3 {[%clk 0:00:16]} 47. Bxd4 {[%clk 0:00:51]}  Bxd4 {[%clk 0:00:16]} 48. Bxh5 {[%clk 0:00:51]}  Bg1 {[%clk 0:00:16]} 49. Bxf3 {[%clk 0:00:51]}  Bxh2 {[%clk 0:00:16]} 50. g4 {[%clk 0:00:51]}  Bg1 {[%clk 0:00:16]} 51. g5 {[%clk 0:00:51]}  Ke6 {[%clk 0:00:16]} 52. Bg4+ {[%clk 0:00:51]}  Kd6 {[%clk 0:00:16]} 53. g6 {[%clk 0:00:51]}  Ke7 {[%clk 0:00:16]} 54. Kd5 {[%clk 0:00:51]} 1-0


[Site "http://www.Chess.com"]

[Event "FIDE World Rapid Chess Championship 2021"]
[White "Dziuba, Marcin"]
[Black "Predke, Alexandr"]
[WhiteFideId "1112953"]
[BlackFideId "24107581"]
[WhiteElo "2424"]
[BlackElo "2630"]
[Result "1-0"]
[Round "02"]
[TimeControl "900+10"]
[Date "2021.12.26"]
[WhiteClock "0:00:32"]
[BlackClock "0:00:22"]

1. d4 {[%clk 0:15:17]}  d5 {[%clk 0:15:17]} 2. c4 {[%clk 0:15:25]}  e6 {[%clk 0:15:26]} 3. Nf3 {[%clk 0:15:31]}  Nf6 {[%clk 0:15:33]} 4. Nc3 {[%clk 0:15:34]}  Bb4 {[%clk 0:15:40]} 5. cxd5 {[%clk 0:15:41]}  exd5 {[%clk 0:15:48]} 6. Bg5 {[%clk 0:15:50]}  O-O {[%clk 0:15:55]} 7. e3 {[%clk 0:15:51]}  c5 {[%clk 0:16:02]} 8. dxc5 {[%clk 0:13:55]}  Nbd7 {[%clk 0:16:09]} 9. Qd4 {[%clk 0:12:06]}  Qa5 {[%clk 0:15:26]} 10. Bxf6 {[%clk 0:10:13]}  Nxf6 {[%clk 0:15:25]} 11. Bd3 {[%clk 0:08:53]}  Ne4 {[%clk 0:13:43]} 12. O-O {[%clk 0:08:21]}  Nxc3 {[%clk 0:13:17]} 13. bxc3 {[%clk 0:08:10]}  Bxc3 {[%clk 0:13:20]} 14. Qh4 {[%clk 0:08:53]}  h6 {[%clk 0:13:14]} 15. Rac1 {[%clk 0:08:53]}  Bf6 {[%clk 0:13:14]} 16. Qh5 {[%clk 0:06:37]}  Qxa2 {[%clk 0:12:49]} 17. Rfd1 {[%clk 0:06:43]}  Rd8 {[%clk 0:10:05]} 18. g4 {[%clk 0:03:49]}  Qa4 {[%clk 0:09:40]} 19. h3 {[%clk 0:03:13]}  Qe8 {[%clk 0:06:19]} 20. Bb1 {[%clk 0:02:51]}  Bd7 {[%clk 0:05:43]} 21. Re1 {[%clk 0:01:43]}  Qf8 {[%clk 0:03:49]} 22. Qxd5 {[%clk 0:00:49]}  Be6 {[%clk 0:03:34]} 23. Qe4 {[%clk 0:01:43]}  g6 {[%clk 0:03:49]} 24. Qf4 {[%clk 0:00:12]}  Bb2 {[%clk 0:03:49]} 25. Rcd1 {[%clk 0:00:18]}  Qxc5 {[%clk 0:03:12]} 26. Qxh6 {[%clk 0:00:21]}  Bg7 {[%clk 0:03:18]} 27. Qh4 {[%clk 0:00:18]}  Rd5 {[%clk 0:03:18]} 28. Be4 {[%clk 0:00:18]}  Rxd1 {[%clk 0:03:18]} 29. Rxd1 {[%clk 0:00:18]}  Qb4 {[%clk 0:03:18]} 30. Ng5 {[%clk 0:00:18]}  Bb3 {[%clk 0:01:27]} 31. Rd7 {[%clk 0:00:42]}  Qe1+ {[%clk 0:01:27]} 32. Kg2 {[%clk 0:00:42]}  Bc4 {[%clk 0:01:27]} 33. Bd3 {[%clk 0:00:42]}  Qd1 {[%clk 0:01:27]} 34. Bxc4 {[%clk 0:00:19]}  Qxd7 {[%clk 0:00:00]} 35. Bxf7+ {[%clk 0:00:19]}  Kf8 {[%clk 0:00:00]} 36. Bxg6 {[%clk 0:00:19]}  a5 {[%clk 0:00:00]} 37. Bf5 {[%clk 0:00:19]}  Qc6+ {[%clk 0:00:00]} 38. e4 {[%clk 0:00:19]}  Re8 {[%clk 0:00:00]} 39. Qh5 {[%clk 0:00:19]}  Re7 {[%clk 0:00:00]} 40. Be6 {[%clk 0:00:19]}  Bf6 {[%clk 0:00:00]} 41. Bd5 {[%clk 0:00:19]}  Qc3 {[%clk 0:00:00]} 42. Qg6 {[%clk 0:00:19]}  Rg7 {[%clk 0:00:00]} 43. Ne6+ {[%clk 0:00:19]}  Ke7 {[%clk 0:00:00]} 44. Nxg7 {[%clk 0:00:19]}  Bxg7 {[%clk 0:00:00]} 45. Qf7+ {[%clk 0:00:32]}  Kd6 {[%clk 0:00:22]} 46. Qxb7 {[%clk 0:00:32]}  Be5 {[%clk 0:00:22]} 47. h4 {[%clk 0:00:32]}  Bd4 {[%clk 0:00:22]} 48. Qa6+ {[%clk 0:00:32]}  Kc7 {[%clk 0:00:22]} 49. Qc4+ {[%clk 0:00:32]}  Kd6 {[%clk 0:00:22]} 50. Qxc3 {[%clk 0:00:32]}  Bxc3 {[%clk 0:00:22]} 51. f4 {[%clk 0:00:32]} 1-0


[Site "http://www.Chess.com"]

[Event "FIDE World Rapid Chess Championship 2021"]
[White "Vidit, Santosh Gujrathi"]
[Black "Sargsyan, Shant"]
[WhiteFideId "5029465"]
[BlackFideId "13306766"]
[WhiteElo "2629"]
[BlackElo "2344"]
[Result "1-0"]
[Round "02"]
[TimeControl "900+10"]
[Date "2021.12.26"]
[WhiteClock "0:03:00"]
[BlackClock "0:00:17"]

1. d4 {[%clk 0:15:15]}  Nf6 {[%clk 0:15:12]} 2. c4 {[%clk 0:15:22]}  e6 {[%clk 0:15:20]} 3. Nf3 {[%clk 0:15:17]}  d5 {[%clk 0:15:28]} 4. Nc3 {[%clk 0:15:13]}  Bb4 {[%clk 0:15:32]} 5. Bg5 {[%clk 0:14:57]}  h6 {[%clk 0:15:33]} 6. Bxf6 {[%clk 0:15:04]}  Qxf6 {[%clk 0:15:39]} 7. Qa4+ {[%clk 0:15:06]}  Nc6 {[%clk 0:15:44]} 8. e3 {[%clk 0:15:13]}  O-O {[%clk 0:15:38]} 9. Be2 {[%clk 0:15:05]}  dxc4 {[%clk 0:15:11]} 10. O-O {[%clk 0:15:02]}  Qg6 {[%clk 0:14:30]} 11. Ne5 {[%clk 0:13:38]}  Nxe5 {[%clk 0:13:50]} 12. Qxb4 {[%clk 0:13:47]}  Nd7 {[%clk 0:13:12]} 13. Qxc4 {[%clk 0:13:35]}  c6 {[%clk 0:13:20]} 14. Rfd1 {[%clk 0:10:23]}  e5 {[%clk 0:11:55]} 15. d5 {[%clk 0:10:11]}  Nb6 {[%clk 0:12:02]} 16. Qb4 {[%clk 0:09:55]}  cxd5 {[%clk 0:12:02]} 17. Nxd5 {[%clk 0:09:55]}  Nxd5 {[%clk 0:12:02]} 18. Rxd5 {[%clk 0:09:55]}  a5 {[%clk 0:06:32]} 19. Rxa5 {[%clk 0:06:46]}  Rxa5 {[%clk 0:06:02]} 20. Qxa5 {[%clk 0:06:53]}  Qc2 {[%clk 0:06:10]} 21. Qb5 {[%clk 0:06:51]}  Rd8 {[%clk 0:05:35]} 22. Bc4 {[%clk 0:05:19]}  Be6 {[%clk 0:02:48]} 23. Bxe6 {[%clk 0:05:23]}  fxe6 {[%clk 0:02:57]} 24. h3 {[%clk 0:04:17]}  Rd2 {[%clk 0:01:37]} 25. Rf1 {[%clk 0:04:17]}  Qxb2 {[%clk 0:01:30]} 26. Qe8+ {[%clk 0:04:25]}  Kh7 {[%clk 0:01:39]} 27. Qxe6 {[%clk 0:04:31]}  h5 {[%clk 0:02:57]} 28. a4 {[%clk 0:04:31]}  b6 {[%clk 0:00:13]} 29. Qf7 {[%clk 0:04:31]}  Kh6 {[%clk 0:00:13]} 30. g4 {[%clk 0:04:31]}  g6 {[%clk 0:00:13]} 31. Qf8+ {[%clk 0:04:31]}  Kh7 {[%clk 0:00:13]} 32. gxh5 {[%clk 0:03:00]}  gxh5 {[%clk 0:00:17]} 33. Qf5+ {[%clk 0:03:00]}  Kh6 {[%clk 0:00:17]} 34. Rb1 {[%clk 0:03:00]} 1-0


[Site "http://www.Chess.com"]